Workbook

Sheet Leiðbeiningar
B2: LEIÐBEININGAR

Sheet Mælikvarðar og markmið
A1: Árangursmælikvarðar
E3: Markmið með mælingu
E4: Gæði | F4: Arðsemi | G4: Ánægja viðskiptavina | H4: Ánægja starfsmanna
A5: Mælikvarðar | C5: 1 | D5: Mat viðskiptavina | E5: x | G5: x
C6: 2 | D6: Kvartanir & ábendingar | E6: x
C7: 3 | D7: Hrós & ánægja | E7: x | G7: x
C8: 4 | D8: Seldar einingar per stöðugildi | F8: x
C9: 5 | D9: Seldar einingar per starfsmann | F9: x
C10: 6 | D10: Tekjur per stöðugildi | F10: x
C11: 7 | D11: Tekjur per viðskiptavin | F11: x | G11: x
C12: 8 | D12: Starfsánægja | H12: x
C13: 9 | D13: Starfsmannavelta | F13: x | H13: x
C14: 10
C15: 11
C16: 12
C18: Margt annað en fræðsla hefur áhrif á þessa mælikvarða, t.d. gengi, verð á seldum einingum, auglýsingar, launahækkanir o.fl.
C20: Mælingar miðast við eins mánaðar tímabil nema annað sé tekið fram.
C21: T0 Mælingar í upphafi tímabils, áður en fræðsluverkefni hefst.
C22: T1 Mælingar á miðju tímabili fræðsluverkefnis.
C23: T2 Mælingar að loknu fræðsluverkefni.
C24: T3 Mælingar 6 mán. eftir að fræðsluverkefni lýkur
C26: [Æskilegt er að setja inn viðeigandi mán. og ár í stað tölustafa efst í hverri töflu í næstu flipum]

Sheet Mat viðskiptavina
B3: Mat viðskiptavina
B5: Tripadvisor/Booking/Google
B7: Lýsing / skilgreiningar:
B8: Fylgjast með heildarskori ásamt skori í nokkrum flokkum eins og hreinlæti, starfsfólk, aðstaða, þægindi og mikið fyrir peninginn (sanngjörn verðlagning).
B10: Hvernig mælt:
B11: Skor á gefnum degi.
B13: Þjónustukönnun og hulduheimsóknir
B15: Lýsing / skilgreiningar:
B16: Þjónustukönnun sem send er til viðskiptavina gefur gott tækifæri til að meta ánægju viðskiptavina með þjónustuna.
B17: Hulduheimsóknir má einnig nýta í sama tilgangi. Þá eru aðilar fengnir til þess að nýta sér þjónustuna án vitundar starfsmanna og meta hana.
B19: Tillaga að gátlista fyrir hulduheimsókn á hóteli.
B20: Tillaga að gátlista fyrir hulduheimsókn í þjónustufyrirtæki.
B22: Tíðni kannana er mismikil eftir óskum og vilja stjórnenda fyrirtækja
B24: Ýmsir fagaðilar bjóða upp á þjónustu á sviði framkvæmd þjónustukannanna.
B26: Hvernig mælt:
B27: Meðaleinkunn einstakra þátta í þjónustukönnun ásamt heildareinkunn.
B28: Hlutfall jákvæðra þátta í niðurstöðum hulduheimsóknar.
B30: Túlkun árangurs:
B38: Mælingar
B40: Trip advisor
C41: T0 | H41: T1 | N41: T2
B42: Mán. | C42: 1 | D42: 2 | E42: 3 | F42: 4 | G42: 5 | H42: 6 | I42: 7 | J42: 8 | K42: 9 | L42: 10 | M42: 11 | N42: 12 | O42: Meðaltal
B43: Heildareinkunn | C43: 2 | O43: =AVERAGE(C43:N43) -> 2.0
B44: Cleanliness | C44: 3 | O44: =AVERAGE(C44:N44) -> 3.0
B45: Location | C45: 4 | O45: =AVERAGE(C45:N45) -> 4.0
B46: Service | C46: 2 | O46: 2.0
B47: Value | C47: 5 | O47: 5.0
B50: Booking
C51: T0 | H51: T1 | N51: T2
B52: Mán. | C52: 1 | D52: 2 | E52: 3 | F52: 4 | G52: 5 | H52: 6 | I52: 7 | J52: 8 | K52: 9 | L52: 10 | M52: 11 | N52: 12 | O52: Meðaltal
B53: Heildareinkunn | O53: =AVERAGE(C53:N53) -> 
B54: Starfsfólk | O54: =AVERAGE(C54:N54) -> 
B55: Þægindi | O55: =AVERAGE(C55:N55) -> 
B56: Aðstaða
B57: Hreinlæti
B58: Mikið fyrir peninginn
B59: Staðsetning
B61: Google stjörnur
C62: T0 | H62: T1 | N62: T2
B63: Mán. | C63: 1 | D63: 2 | E63: 3 | F63: 4 | G63: 5 | H63: 6 | I63: 7 | J63: 8 | K63: 9 | L63: 10 | M63: 11 | N63: 12 | O63: Meðaltal
B64: Heildareinkunn | O64: =AVERAGE(C64:N64) -> 
B66: Þjónustukönnun og hulduheimsóknir
C67: T0 | H67: T1 | N67: T2
B68: Mán. | C68: 1 | D68: 2 | E68: 3 | F68: 4 | G68: 5 | H68: 6 | I68: 7 | J68: 8 | K68: 9 | L68: 10 | M68: 11 | N68: 12 | O68: Meðaltal
B69: Þjónustukönnun - heildareinkunn | O69: =AVERAGE(C69:N69) -> 
B70: Þjónustukönnun - [setjið inn þjónustuþátt] | O70: =AVERAGE(C70:N70) -> 
B71: Hulduheimsókn - hlutfall jákvæðra þátta | O71: =AVERAGE(C71:N71) -> 

Sheet Kvartanir & ábendingar
B2: Kvartanir & ábendingar
B4: Lýsing / skilgreiningar:
B5: Líta má á kvartanir og ábendingar sem verðmætar upplýsingar um það sem betur má fara í þjónustu fyrirtækisins.
B6: Æskilegt er að halda utan um kvartanir og ábendingar, hvort sem um er að ræða munnlegar eða skriflegar, í gagnagrunni hvers konar.
B7: Hægt er að flokka kvartanir og ábendingar eftir eðli þeirra og alvarleika.
B9: Dæmi um miðla: Munnlegt, tölvupóstur, símtöl, Facebook, Twitter, Instagram, Tripadvisor.
B11: Hvernig mælt:
B12: Fjöldi kvartana og ábendinga talinn og skráður.
B14: Túlkun árangurs:
B24: Mælingar
C26: Kvartanir & ábendingar
C27: Fjöldi
D28: T0 | I28: T1 | O28: T2
C29: Mán. | D29: 1 | E29: 2 | F29: 3 | G29: 4 | H29: 5 | I29: 6 | J29: 7 | K29: 8 | L29: 9 | M29: 10 | N29: 11 | O29: 12 | P29: Meðaltal
C30: Um viðmót starfsmanna | P30: =AVERAGE(D30:O30) -> 
C31: Um vöru/þjónustu | P31: =AVERAGE(D31:O31) -> 
C32: Um annað er tengist þjónustu | P32: =AVERAGE(D32:O32) -> 
C33: [Setjið inn eigin skilgreiningu]
C34: Heildarfj. kvartana/ábendinga | D34: =SUM(D30:D33) -> 0 | E34: =SUM(E30:E33) -> 0 | F34: 0 | G34: 0 | H34: 0 | I34: 0 | J34: 0 | K34: 0 | L34: 0 | M34: 0 | N34: 0 | O34: 0 | P34: 0.0

Sheet Hrós & ánægja
B3: Hrós & ánægja
B5: Lýsing / skilgreiningar:
B7: Hrós
B8: Hrós og ábendingar um það sem vel er gert hvetur okkur til að dáða og hjálpar okkur að greina hvar okkar styrleikar liggja.
B9: Mikilvægt er að skrá öll hrós sem berast. Hrós geta borist í gegnum samfélagsmiðla og aðra skriflega miðla.
B10: Skrifleg endurgjöf í formi ábendinga um það sem betur má fara er einnig mikilvægt að greina.
B11: Æskilegt er að starfsmenn hafi farveg til að miðla munnlegum hrósum frá viðskiptavinum svo hægt sé að safna þeim saman með skriflegum hrósum.
B13: Dæmi um miðla: Munnlegt, tölvupóstur, símtöl, Facebook, Twitter, Instagram, Tripadvisor.
B15: Hvernig mælt:
B16: Fjöldi hrósa talinn og skráður.
B18: Túlkun á árangri:
B30: Mælingar
C33: Hrós & ánægja
C34: Fjöldi
D35: T0 | I35: T1 | O35: T2
C36: Mán. | D36: 1 | E36: 2 | F36: 3 | G36: 4 | H36: 5 | I36: 6 | J36: 7 | K36: 8 | L36: 9 | M36: 10 | N36: 11 | O36: 12 | P36: Meðaltal
C37: Um viðmót starfsmanna | D37: 1 | E37: 2 | F37: 2 | P37: =AVERAGE(D37:O37) -> 1.7
C38: Um vöru/þjónustu | D38: 2 | E38: 5 | F38: 6 | P38: =AVERAGE(D38:O38) -> 4.3
C39: Um annað er tengist þjónustu | D39: 5 | E39: 2 | F39: 3 | P39: =AVERAGE(D39:O39) -> 3.3
C40: [Setjið inn eigin skilgreiningu] | D40: 1 | E40: 5 | F40: 3 | P40: =AVERAGE(D40:O40) -> 3.0
C41: Heildarfj. hrósa | D41: =SUM(D37:D40) -> 9 | E41: =SUM(E37:E40) -> 14 | F41: 14 | G41: 0 | H41: 0 | I41: 0 | J41: 0 | K41: 0 | L41: 0 | M41: 0 | N41: 0 | O41: 0 | P41: 3.1

Sheet Seldar einingar
B3: Seldar einingar per stöðugildi
B5: Lýsing / skilgreiningar:
B6: Seld eining: t.d. Gistinótt, veitingar, matargestur, ferð o.s.frv.
B7: Stöðugildi: 100% starf. Ef 2 starfsmenn sinna 50% starfi eru þeir samanlagt 1 stöðugildi.
B9: Hvernig mælt: | D9: Seldar einingar yfir mánuðinn / fjöldi stöðugildar í lok mán.
D11: Dæmi: Fyrirtæki 1 er með 50 stöðugildi í lok mánaðar og selur 500 aðgangsmiða yfir mánuðinn.
E12: Einingar | F12: 500
E13: Stöðugildi | F13: 50
E14: Seldar einingar per stöðugildi | F14: =SUM(F12/F13) -> 10
B16: Túlkun árangurs:
B22: Seldar einingar per starfsmann
B24: Sjá skýringar á undan. Í stað stöðugilda er fjöldi starfsmanna tekinn með í reikninginn.
B29: Mælingar
D31: Fjöldi seldra eininga per stöðugildi
E32: T0 | J32: T1 | P32: T2
D33: Mán. | E33: 1 | F33: 2 | G33: 3 | H33: 4 | I33: 5 | J33: 6 | K33: 7 | L33: 8 | M33: 9 | N33: 10 | O33: 11 | P33: 12 | Q33: Meðaltal
D34: Seldar einingar 1 | E34: 40 | Q34: =AVERAGE(E34:P34) -> 40.0
D35: Stöðugildi | E35: 3 | Q35: =AVERAGE(E35:P35) -> 3.0
D36: Seldar [einingar 1] per stöðugildi | E36: =E34/E35 -> 13.3 | F36: =F34/F35 -> 
E39: T0 | J39: T1 | P39: T2
D40: Mán. | E40: 1 | F40: 2 | G40: 3 | H40: 4 | I40: 5 | J40: 6 | K40: 7 | L40: 8 | M40: 9 | N40: 10 | O40: 11 | P40: 12 | Q40: Meðaltal
D41: Seldar einingar 2 | E41: 1,000 | Q41: =AVERAGE(E41:P41) -> 1,000
D42: Stöðugildi | E42: 5 | Q42: =AVERAGE(E42:P42) -> 5.0
D43: Seldar [einingar 2] per stöðugildi | E43: =E41/E42 -> 200.0 | F43: =F41/F42 ->  | G43: =G41/G42 ->  | I43: =I41/I42 ->  | J43: =J41/J42 -> 
E46: T0 | J46: T1 | P46: T2
D47: Mán. | E47: 1 | F47: 2 | G47: 3 | H47: 4 | I47: 5 | J47: 6 | K47: 7 | L47: 8 | M47: 9 | N47: 10 | O47: 11 | P47: 12 | Q47: Meðaltal
D48: Seldar einingar 3 | E48: 100 | Q48: =AVERAGE(E48:P48) -> 100.0
D49: Stöðugildi | E49: 5 | Q49: =AVERAGE(E49:P49) -> 5.0
D50: Seldar [einingar 3] per stöðugildi | E50: =E48/E49 -> 20.0 | F50: =F48/F49 -> 
D53: Fjöldi seldra eininga per starfsmann
E54: T0 | J54: T1 | P54: T2
D55: Mán. | E55: 1 | F55: 2 | G55: 3 | H55: 4 | I55: 5 | J55: 6 | K55: 7 | L55: 8 | M55: 9 | N55: 10 | O55: 11 | P55: 12 | Q55: Meðaltal
D56: Seldar einingar 1 | E56: 8 | Q56: =AVERAGE(E56:P56) -> 8.0
D57: Fjöldi starfsmanna | E57: 5 | Q57: =AVERAGE(E57:P57) -> 5.0
D58: Seldar [einingar 1] per starfsmann | E58: =E56/E57 -> 1.6 | F58: =F56/F57 -> 
E61: T0 | J61: T1 | P61: T2
D62: Mán. | E62: 1 | F62: 2 | G62: 3 | H62: 4 | I62: 5 | J62: 6 | K62: 7 | L62: 8 | M62: 9 | N62: 10 | O62: 11 | P62: 12 | Q62: Meðaltal
D63: Seldar einingar 2 | E63: 1000 | Q63: =AVERAGE(E63:P63) -> 1000.0
D64: Fjöldi starfsmanna | E64: 5 | Q64: =AVERAGE(E64:P64) -> 5.0
D65: Seldar [einingar 2] per starfsmann | E65: =E63/E64 -> 200.0 | F65: =F63/F64 ->  | G65: =G63/G64 ->  | I65: =I63/I64 ->  | J65: =J63/J64 -> 
E68: T0 | J68: T1 | P68: T2
D69: Mán. | E69: 1 | F69: 2 | G69: 3 | H69: 4 | I69: 5 | J69: 6 | K69: 7 | L69: 8 | M69: 9 | N69: 10 | O69: 11 | P69: 12 | Q69: Meðaltal
D70: Seldar einingar 3 | E70: 100 | Q70: =AVERAGE(E70:P70) -> 100.0
D71: Fjöldi starfsmanna | E71: 5 | Q71: =AVERAGE(E71:P71) -> 5.0
D72: Seldar [einingar 3] per starfsmann | E72: =E70/E71 -> 20.0 | F72: =F70/F71 -> 

Sheet Tekjur
B3: Tekjur per stöðugildi
B5: Lýsing / skilgreiningar:
B6: Skoða má arðsemi og hagkvæmni í rekstri með því að sjá hvernig tekjur dreifast á stöðugildi.
B7: Tekjur: Skv. VSK skýrslum.
B8: Stöðugildi: 100% starf. Ef 2 starfsmenn sinna 50% starfi eru þeir samanlagt 1 stöðugildi.
B10: Hvernig mælt:
D12: Dæmi: Fyrirtæki er með 50 stöðugildi í lok mánaðar og er með tekjur að upphæð 1.000.000 kr. yfir mánuðinn.
E14: Tekjur | F14: ISK 1,000,000
E15: Stöðugildi | F15: 50
E16: Tekjur per stöðugildi | F16: =SUM(F14/F15) -> ISK 20,000
B18: Túlkun árangurs:
B23: Tekjur per viðskiptavin
B25: Lýsing / skilgreiningar:
B26: Skoða má arðsemi og hagkvæmni í rekstri með því að sjá hvernig tekjur dreifast á fjölda viðskiptavina.
B27: Tekjur: Skv. VSK skýrslum.
B28: Fjöldi viðskiptavina: Upplýsingar fengnar úr bókunarvélum / viðskiptavinagrunni.
B32: Hvernig mælt:
D33: Dæmi: Fyrirtæki fær 100 viðskiptavini og tekjur að upphæð 1.000.000 kr. yfir mánuðinn.
E35: Tekjur | F35: ISK 1,000,000
E36: Viðskiptavinir | F36: 100
E37: Tekjur per viðskiptavin | F37: =SUM(F35/F36) -> ISK 10,000
B40: Túlkun árangurs:
B49: Mælingar
C52: Tekjur per stöðugildi
D54: T0 | I54: T1 | O54: T2
C55: Mán. | D55: 1 | E55: 2 | F55: 3 | G55: 4 | H55: 5 | I55: 6 | J55: 7 | K55: 8 | L55: 9 | M55: 10 | N55: 11 | O55: 12 | P55: Meðaltal
C56: Tekjur (vsk skýrslur) | D56: 1,000,000 | P56: =AVERAGE(D56:O56) -> 1,000,000
C57: Stöðugildi | D57: 5 | P57: =AVERAGE(D57:O57) -> 5.0
C58: Tekjur per stöðugildi | D58: =D56/D57 -> 200,000 | E58: =E56/E57 ->  | F58: =F56/F57 ->  | H58: =H56/H57 ->  | I58: =I56/I57 -> 
C61: Tekjur per viðskiptavin
D63: T0 | I63: T1 | O63: T2
C64: Mán. | D64: 1 | E64: 2 | F64: 3 | G64: 4 | H64: 5 | I64: 6 | J64: 7 | K64: 8 | L64: 9 | M64: 10 | N64: 11 | O64: 12 | P64: Meðaltal
C65: Tekjur (vsk skýrslur) | P65: =AVERAGE(D65:O65) -> 
C66: Fjöldi viðskiptavina | P66: =AVERAGE(D66:O66) -> 
C67: Tekjur per viðskiptavin | D67: 10,000 | E67: =E65/E66 ->  | F67: =F65/F66 ->  | H67: =H65/H66 ->  | I67: =I65/I66 -> 

Sheet Starfsánægja
B4: Starfsánægja
B6: Lýsing / skilgreiningar:
B7: Tilgangurinn er að mæla hversu ánægður starfsmaður er í starfi og starfsumhverfi? Starfsánægja byggir á ýmsum undirþáttum sem saman mynda almenna starfsánægju.
B9: Hvernig mælt:
B10: Starfsánægja er mæld með viðhorfskönnun sem lögð er fyrir starfsmenn.
B12: Ýmsir fagaðilar bjóða upp á þjónustu á sviði vinnustaðagreininga og starfsmannakannana.
B13: Einnig geta fyrirtæki sjálf útfært sínar eigin kannanir með því að nýta sér greiningartækið www.kanni.is
B14: Áríðandi er að tryggja nafnleysi svarenda og að ekki sé hægt að rekja svör til einstaklinga.
B15: Ekki er viðeigandi að senda út könnun og vinna úr niðurstöðum þar sem færri en 5 starfa.
B17: Tíðni kannana er mismikil eftir óskum og vilja stjórnenda fyrirtækja. Allt frá mánaðarlegum örkönnunum upp í lengri kannanir á ársfresti.
B19: Hér má kynna sér tillögur að spurningum: | F19: IS | G19: EN | H19: PL
B21: Túlkun árangurs:
B32: Mælingar
D35: Starfsánægja
D36: Spurningar úr starfsánægjukönnun Kanna
D38: Fyrsta mæling | E38: Mjög sammála | F38: Frekar sammála | G38: Hlutlaus | H38: Frekar ósammála | I38: Mjög ósammála
E39: 5 | F39: 4 | G39: 3 | H39: 2 | I39: 1 | K39: Einkunn
D40: Ég er almennt ánægð/ur í vinnunni | J40: =SUM(E40:I40) -> 0% | K40: =IFERROR((SUM(E40*$E$39,F40*$F$39,G40*$G$39,H40*$H$39,I40*$I$39)/J40),"") -> 
D41: Ég get nýtt þekkingu mína og hæfni í núverandi starfi | J41: =SUM(E41:I41) -> 0% | K41: =IFERROR((SUM(E41*$E$39,F41*$F$39,G41*$G$39,H41*$H$39,I41*$I$39)/J41),"") -> 
D42: Ég veit fyrirfram hvenær ég þarf að vinna yfirvinnu | J42: 0%
D43: Ég fæ viðeigandi þjálfun til að sinna starfi mínu | J43: 0%
D44: Samstarfsmenn mínir sýna mér almennt vingjarnlegt viðmót | J44: =SUM(E44:I44) -> 0%
D45: Ég kemst frá vinnu þegar ég nauðsynlega þarf á að halda (t.d. til læknis) | J45: 0%
D46: Starfsmenn sýna hver öðrum umburðarlyndi á vinnustaðnum | J46: 0%
D47: Ég fær stuðning frá næsta yfirmanni þegar við á | J47: 0%
D48: Vinnustaðurinn er laus við hótanir og ofbeldi | J48: 0%
D49: Ég veit til hvers er ætlast af mér í vinnunni | J49: 0%
D50: Upplýsingaflæði á vinnustaðnum er í lagi | J50: 0%
D51: Það er komið fram við alla starfsmenn á jafnréttisgrundvelli | J51: 0%
D52: Vinnutíminn er eins og um var samið | J52: 0%
D53: Það er borin virðing fyrir mér sem starfsmani | J53: 0%
D54: Mér tekst að ljúka verkefnum mínum á tilsettum tíma | J54: 0%
D55: Vinnustaðurinn er laus við samskiptavandamál | J55: 0%
D56: Vinnustaðurinn er laus við einelti | J56: 0%
D57: Ég fæ stuðning frá samstarfsfólki þegar við á | J57: 0%
D58: Ég myndi mæla með vinnustaðnum | J58: 0%
D59: Ég er óeðlilega þreytt/ur eftir vinnudaginn | J59: =SUM(E59:I59) -> 0%
K60: =IFERROR((AVERAGE(K40:K59)),0) -> 0.0
E63: Já | F63: Nei
D64: Ég hef fengið skriflega starfslýsingu í mínar hendur | G64: =SUM(E64:F64) -> 0%
D65: Ég hef kost á að sækja námskeið tengt starfi mínu | G65: =SUM(E65:F65) -> 0%
D66: Ég hef fengið skriflegan ráðningarsamning | G66: 0%
D70: Önnur mæling | E70: Mjög sammála | F70: Frekar ósammála | G70: Hlutlaus | H70: Frekar ósammála | I70: Mjög ósammála
E71: 5 | F71: 4 | G71: 3 | H71: 2 | I71: 1 | K71: Einkunn
D72: Ég er almennt ánægð/ur í vinnunni | J72: =SUM(E72:I72) -> 0% | K72: =IFERROR((SUM(E72*$E$39,F72*$F$39,G72*$G$39,H72*$H$39,I72*$I$39)/J72),"") -> 
D73: Ég get nýtt þekkingu mína og hæfni í núverandi starfi | J73: =SUM(E73:I73) -> 0% | K73: =IFERROR((SUM(E73*$E$39,F73*$F$39,G73*$G$39,H73*$H$39,I73*$I$39)/J73),"") -> 
D74: Ég veit fyrirfram hvenær ég þarf að vinna yfirvinnu | J74: 0%
D75: Ég fæ viðeigandi þjálfun til að sinna starfi mínu | J75: 0%
D76: Samstarfsmenn mínir sýna mér almennt vingjarnlegt viðmót | J76: 0%
D77: Ég kemst frá vinnu þegar ég nauðsynlega þarf á að halda (t.d. til læknis) | J77: 0%
D78: Starfsmenn sýna hver öðrum umburðarlyndi á vinnustaðnum | J78: 0%
D79: Ég fær stuðning frá næsta yfirmanni þegar við á | J79: 0%
D80: Vinnustaðurinn er laus við hótanir og ofbeldi | J80: 0%
D81: Ég veit til hvers er ætlast af mér í vinnunni | J81: 0%
D82: Upplýsingaflæði á vinnustaðnum er í lagi | J82: 0%
D83: Það er komið fram við alla starfsmenn á jafnréttisgrundvelli | J83: 0%
D84: Vinnutíminn er eins og um var samið | J84: 0%
D85: Það er borin virðing fyrir mér sem starfsmani | J85: 0%
D86: Mér tekst að ljúka verkefnum mínum á tilsettum tíma | J86: 0%
D87: Vinnustaðurinn er laus við samskiptavandamál | J87: 0%
D88: Vinnustaðurinn er laus við einelti | J88: 0%
D89: Ég fæ stuðning frá samsatarfsfólki þegar við á | J89: 0%
D90: Ég myndi mæla með vinnustaðnum | J90: 0%
D91: Ég er óeðlilega þreytt/ur eftir vinnudaginn | J91: =SUM(E91:I91) -> 0%
K92: =IFERROR((AVERAGE(K72:K91)),0) -> 0.0
E95: Já | F95: Nei
D96: Ég hef fengið skriflega starfslýsingu í mínar hendur | G96: =SUM(E96:F96) -> 0%
D97: Ég hef kost á að sækja námskeið tengt starfi mínu | G97: =SUM(E97:F97) -> 0%
D98: Ég hef fengið skriflegan ráðningarsamning | G98: 0%

Sheet Starfsmannavelta
B3: Starfsmannavelta
B5: Skilgreiningar:
B6: Velta starfsmanna segir til um hlutfall þeirra sem hætta hjá fyrirtækinu.
B8: Hægt er að flokka starfsmannaveltu með eftirfarandi hætti:
B9: a) Heildarvelta. Allir starfsmenn sem létu af störfum, óháð ástæðu.
B10: a) Raunvelta (Sjálfráð). Starfsmaður lætur af störfum að eigin ósk.
B11: c) Nýliðavelta. Gagnlegt er að greina veltu nýráðinna starfsmanna, þ.e. Þeirra sem létu af störfum á reynslutíma (3-6 mánuðir).
B13: Hvernig mælt: | D13: Fjöldi starfsmanna sem hætta á tímabilinu / Meðalfjöldi starfsmanna á tímabilinu * 100
D14: Æskilegt er að horfa á veltu lengra tímabils, s.s. hálft ár eða heilt ár í senn.
D16: Fjöldi starfsmanna í upphafi tímabils | E16: Fjöldi starfsmanna í lok tímabils | F16: Meðalfjöldi starfsmanna á tímabilinu
D17: 50 | E17: 53 | F17: =AVERAGE(D17:E17) -> 51.5
D19: Fjöldi allra starfsmanna sem hættu á tímabilinu | E19: Meðalfjöldi starfsmanna á tímabilinu | F19: Heildarvelta
D20: 15 | E20: =F17 -> 51.5 | F20: =D20/E20 -> 29.1%
D21: Fjöldi starfsmanna sem sögðu upp að eigin ósk | E21: Meðalfjöldi starfsmanna á tímabilinu | F21: Raunvelta
D22: 10 | E22: =F17 -> 51.5 | F22: =D22/E22 -> 19.4%
D23: Fjöldi nýráðinna á tímabilinu | E23: Fjöldi nýliða sem hættu á reynslutíma | F23: Nýliðavelta
D24: 25 | E24: 5 | F24: =E24/D24 -> 20.0%
B28: Túlkun árangurs:
B39: Mælingar
E42: Starfsmannavelta - hálfsársvelta | J42: Starfsmannavelta - ársvelta
E43: T0 | F43: T1 | G43: T2 | H43: T3 | J43: T0 | K43: T1
E44: T0 sl. 6 mán | F44: T1 sl. 6 mán. | G44: T2 sl. 6 mán. | H44: T3 sl. 6 mán. | J44: T0 sl. ár | K44: T1 sl. ár
D45: Fj. stm. í upphafi | E45: 20 | J45: 18
D46: Fj. stm. í lok | E46: 10 | J46: 24
D47: Meðalfjöldi | E47: =AVERAGE(E45:E46) -> 15 | F47: =AVERAGE(F45:F46) ->  | J47: =AVERAGE(J45:J46) -> 21
D49: Fj. nýráðninga | E49: 2 | J49: 5
D51: Fj. allra stm. sem létu af störfum | E51: 4 | J51: 8
D52: Heildarvelta | E52: =E51/E47 -> 26.7% | F52: =F51/F47 ->  | J52: =J51/J47 -> 38.1%
D53: Fj. stm. sem sögðu upp að eigin ósk | E53: 2 | J53: 4
D54: Raunvelta | E54: =E53/E47 -> 13.3% | F54: =F53/F47 ->  | J54: =J53/J47 -> 19.0%
D55: Fj. nýliða sem hættu á reynslutíma | E55: 1 | J55: 2
D56: Nýliðavelta | E56: =E55/E49 -> 50.0% | F56: =F55/F49 ->  | J56: =J55/J49 -> 40.0%

Sheet HEILDARYFIRLIT
B2: HEILDARYFIRLIT
B5: MAT VIÐSKIPTAVINA
B49: KVARTANIR & ÁBENDINGAR
B72: HRÓS & ÁNÆGJA
B95: SELDAR EININGAR
B160: TEKJUR
B183: STARFSÁNÆGJA
B206: STARFSMANNAVELTA
